fUSD/lending_fUSD_20240301
["ID","MTS","AMOUNT","RATE_DAILY","PERIOD"]
[316030202,1709328672522,-841.14,0.00022465,2]
[316030203,1709328672531,-500.0,0.00022465,2]
[316030204,1709328672540,-577.75,0.00022465,2]
[316030205,1709328672550,-1258.66,0.00022465,2]
[316030206,1709328672559,-500.0,0.00022465,2]
[316030207,1709328672568,-943.35,0.00022465,2]
[316030208,1709328672577,-652.2,0.00022465,2]
[316030209,1709328672587,-1224.0,0.00022465,2]
[316030210,1709328672596,-864.99,0.00022465,2]
[316030211,1709328672606,-510.70870854,0.00022465,2]
[316030212,1709328672615,-820.32,0.00022465,2]
[316030213,1709328672624,-612.09,0.00022465,2]
[316030214,1709328672634,-500.0,0.00022465,2]
[316030215,1709328672645,-2359.92,0.00022465,2]
[316030216,1709328672654,-500.0,0.00022465,2]
[316030217,1709328672664,-500.0,0.00022465,2]
[316030218,1709328672673,-716.08,0.00022465,2]
[316030219,1709328672683,-1817.57,0.00022465,2]
[316030220,1709328672693,-1515.63,0.00022465,2]
[316030221,1709328672703,-777.15,0.00022465,2]
[316030222,1709328672714,-819.32,0.00022465,2]
[316030223,1709328672724,-500.0,0.00022465,2]
[316030224,1709328672733,-500.0,0.00022465,2]
[316030225,1709328672743,-591.97,0.00022465,2]
[316030226,1709328672752,-500.0,0.00022465,2]
[316030227,1709328672761,-1444.25,0.00022465,2]
[316030228,1709328672771,-890.54,0.00022465,2]
[316030229,1709328672780,-500.0,0.00022465,2]
[316030230,1709328672790,-500.0,0.00022465,2]
[316030231,1709328672800,-500.0,0.00022465,2]
[316030232,1709328672810,-653.12,0.00022465,2]
[316030233,1709328672819,-500.0,0.00022465,2]
[316030234,1709328672828,-544.86,0.00022465,2]
[316030235,1709328672838,-500.0,0.00022465,2]
[316030236,1709328672847,-668.01,0.00022465,2]
[316030237,1709328672857,-564.0,0.00022465,2]
[316030238,1709328672867,-517.53,0.00022465,2]
[316030239,1709328672876,-11798.33,0.00022465,2]
[316030240,1709328672886,-500.0,0.00022465,2]
[316030241,1709328672897,-500.0,0.00022465,2]
[316030242,1709328672907,-500.0,0.00022465,2]
[316030243,1709328672917,-500.0,0.00022465,2]
[316030244,1709328672927,-615.8,0.00022465,2]
[316030245,1709328672936,-1178.7,0.00022465,2]
[316030246,1709328672946,-500.0,0.00022465,2]
[316030247,1709328672956,-708.24,0.00022465,2]
[316030248,1709328672965,-500.0,0.00022465,2]
[316030249,1709328672975,-500.0,0.00022465,2]
[316030250,1709328672985,-3036.11,0.00022465,2]
[316030251,1709328672995,-500.0,0.00022465,2]
[316030252,1709328673004,-819.23,0.00022465,2]
[316030253,1709328673014,-500.0,0.00022465,2]
[316030254,1709328673024,-568.79,0.00022465,2]
[316030255,1709328673034,-1291.29,0.00022465,2]
[316030256,1709328673045,-507.75,0.00022465,2]
[316030257,1709328673057,-661.02,0.00022465,2]
[316030258,1709328673067,-500.0,0.00022465,2]
[316030259,1709328673076,-592.43,0.00022465,2]
[316030260,1709328673086,-1204.1,0.00022465,2]
[316030261,1709328673095,-500.0,0.00022465,2]
[316030262,1709328673105,-500.0,0.00022465,2]
[316030263,1709328673114,-1481.86,0.00022465,2]
[316030264,1709328673123,-500.0,0.00022465,2]
[316030265,1709328673136,-500.0,0.00022465,2]
[316030266,1709328673148,-783.92,0.00022465,2]
[316030267,1709328673157,-500.0,0.00022465,2]
[316030268,1709328673166,-2213.26,0.00022465,2]
[316030269,1709328673176,-500.0,0.00022465,2]
[316030270,1709328673185,-782.94,0.00022465,2]
[316030271,1709328673194,-500.0,0.00022465,2]
[316030272,1709328673204,-1312.48,0.00022465,2]
[316030273,1709328673213,-500.0,0.00022465,2]
[316030274,1709328673223,-836.34,0.00022465,2]
[316030275,1709328673232,-1408.63,0.00022465,2]
[316030276,1709328673242,-500.0,0.00022465,2]
[316030277,1709328673251,-552.95,0.00022465,2]
[316030278,1709328673261,-877.39,0.00022465,2]
[316030279,1709328673272,-726.46,0.00022465,2]
[316030280,1709328673281,-500.0,0.00022465,2]
[316030281,1709328673291,-1437.05,0.00022465,2]
[316030282,1709328673300,-500.0,0.00022465,2]
[316030283,1709328673310,-2294.72,0.00022465,2]
[316030284,1709328673320,-906.87,0.00022465,2]
[316030285,1709328673330,-685.72,0.00022465,2]
[316030286,1709328673339,-443.72,0.00022465,2]
[316030287,1709328673349,-500.0,0.00022465,2]
[316030288,1709328673358,-786.95,0.00022465,2]
[316030289,1709328673367,-500.0,0.00022465,2]
[316030290,1709328673377,-500.0,0.00022465,2]
[316030291,1709328673386,-571.0,0.00022465,2]
[316030292,1709328673397,-500.0,0.00022465,2]
[316030293,1709328673407,-1703.63,0.00022465,2]
[316030294,1709328673417,-2645.44,0.00022465,2]
[316030295,1709328673427,-572.96,0.00022465,2]
[316030296,1709328673437,-923.63,0.00022465,2]
[316030297,1709328673446,-500.0,0.00022465,2]
[316030298,1709328673456,-874.1,0.00022465,2]
[316030299,1709328673466,-500.0,0.00022465,2]
[316030300,1709328673476,-2609.99,0.00022465,2]
[316030301,1709328673486,-500.0,0.00022465,2]
[316030302,1709328673496,-500.0,0.00022465,2]
[316030303,1709328673506,-4819.61,0.00022465,2]
[316030304,1709328673515,-1024.04,0.00022465,2]
[316030305,1709328673525,-500.0,0.00022465,2]
[316030306,1709328673534,-567.41,0.00022465,2]
[316030307,1709328673545,-1364.46,0.00022465,2]
[316030308,1709328673554,-500.0,0.00022465,2]
[316030309,1709328673564,-1947.64,0.00022465,2]
[316030310,1709328673574,-961.79,0.00022465,2]
[316030311,1709328673583,-1664.45,0.00022465,2]
[316030312,1709328673593,-500.0,0.00022465,2]
[316030313,1709328673602,-500.0,0.00022465,2]
[316030314,1709328673612,-2683.61,0.00022465,2]
[316030315,1709328673621,-591.44,0.00022465,2]
[316030316,1709328673631,-5623.01,0.00022465,2]
[316030317,1709328673642,-500.0,0.00022465,2]
[316030318,1709328673651,-3786.07,0.00022465,2]
[316030319,1709328673661,-500.0,0.00022465,2]
[316030320,1709328673670,-500.0,0.00022465,2]
[316030321,1709328673679,-1383.65,0.00022465,2]
[316030322,1709328673688,-500.0,0.00022465,2]
[316030323,1709328673697,-9217.98,0.00022465,2]
[316030324,1709328673707,-561.4,0.00022465,2]
[316030325,1709328673717,-11675.57,0.00022465,2]
[316030326,1709328673726,-500.0,0.00022465,2]
[316030327,1709328673735,-1723.27,0.00022465,2]
[316030328,1709328673744,-500.0,0.00022465,2]
[316030329,1709328673754,-8684.27,0.00022465,2]
[316030330,1709328673763,-351.37300729,0.00022465,2]
[316030331,1709328673773,-422.40424141,0.00022465,2]
[316030332,1709328673782,-702.09,0.00022465,2]
[316030333,1709328673791,-500.0,0.00022465,2]
[316030334,1709328673801,-3567.05,0.00022465,2]
[316030335,1709328673810,-3405.56,0.00022465,2]
[316030336,1709328673820,-2872.71,0.00022465,2]
[316030337,1709328673830,-4829.55,0.00022465,2]
[316030338,1709328673839,-7070.51,0.00022465,2]
[316030339,1709328673849,-500.0,0.00022465,2]
[316030340,1709328673859,-26810.74,0.00022465,2]
[316030341,1709328673868,-2983.15,0.00022465,2]
[316030342,1709328673877,-416.55,0.00022465,2]
[316030343,1709328673887,-500.0,0.00022465,2]
[316030344,1709328673899,-719.44,0.00022465,2]
[316030345,1709328673909,-6899.63,0.00022465,2]
[316030346,1709328673919,-1105.01,0.00022465,2]
[316030347,1709328673930,-944.86,0.00022465,2]
[316030348,1709328673939,-1000.0,0.00022487,2]
[316030349,1709328673950,-4357.48530198,0.00022494,2]
[316030350,1709328673960,-475.39,0.00022508,2]
[316030351,1709328673969,-1093.48879228,0.0002254,2]
[316030352,1709328673979,-20031.75565759,0.0002255,2]
[316030353,1709328673989,-384.50877493,0.00022574,2]
[316030354,1709328673999,-150.0,0.00022574,2]
[316030355,1709328674009,-500.0,0.00022575,2]
[316030356,1709328674020,-500.0,0.00022575,2]
[316030357,1709328674030,-500.0,0.00022575,2]
[316030358,1709328674041,-500.0,0.00022575,2]
[316030359,1709328674056,-410.61,0.00022575,2]
[316030360,1709328674065,-500.0,0.00022575,2]
[316030361,1709328674075,-500.0,0.00022575,2]
[316030362,1709328674084,-500.0,0.00022575,2]
[316030363,1709328674095,-500.0,0.00022575,2]
[316030364,1709328674104,-500.0,0.00022575,2]
[316030365,1709328674114,-500.0,0.00022575,2]
[316030366,1709328674124,-500.0,0.00022575,2]
[316030367,1709328674134,-226.16698292,0.00022575,2]
[316030368,1709328674147,-500.0,0.00022575,2]
[316030369,1709328674157,-500.0,0.00022575,2]
[316030370,1709328674167,-500.0,0.00022575,2]
[316030371,1709328674176,-500.0,0.00022575,2]
[316030372,1709328674186,-500.0,0.00022575,2]
[316030373,1709328674196,-500.0,0.00022575,2]
[316030374,1709328674206,-500.0,0.00022575,2]
[316030375,1709328674216,-504.87,0.00022575,2]
[316030376,1709328674227,-500.0,0.00022575,2]
[316030377,1709328674237,-500.0,0.00022575,2]
[316030378,1709328674247,-561.37,0.00022575,2]
[316030379,1709328674257,-500.0,0.00022575,2]
[316030380,1709328674267,-500.0,0.00022575,2]
[316030381,1709328674276,-500.0,0.00022575,2]
[316030382,1709328674286,-315.20725609,0.00022575,2]
[316030383,1709328674296,-582.66607703,0.00022575,2]
[316030384,1709328674306,-500.0,0.00022575,2]
[316030385,1709328674316,-500.0,0.00022575,2]
[316030386,1709328674325,-500.0,0.00022575,2]
[316030387,1709328674335,-500.0,0.00022575,2]
[316030388,1709328674344,-400.2,0.00022575,2]
[316030389,1709328674355,-500.0,0.00022575,2]
[316030390,1709328674365,-500.0,0.00022575,2]
[316030391,1709328674375,-500.0,0.00022575,2]
[316030392,1709328674384,-500.0,0.00022575,2]
[316030393,1709328674398,-500.0,0.00022575,2]
[316030394,1709328674408,-500.0,0.00022575,2]
[316030395,1709328674417,-806.31,0.00022575,2]
[316030396,1709328674426,-868.44,0.00022575,2]
[316030397,1709328674435,-500.0,0.00022575,2]
[316030398,1709328674443,-500.0,0.00022575,2]
[316030399,1709328674452,-520.71,0.00022575,2]
[316030400,1709328674461,-500.0,0.00022575,2]
[316030401,1709328674470,-500.0,0.00022575,2]
[316030402,1709328674478,-500.0,0.00022575,2]
[316030403,1709328674487,-214.71496869,0.00022575,2]
[316030404,1709328674495,-526.71,0.00022575,2]
[316030405,1709328674504,-500.0,0.00022575,2]
[316030406,1709328674513,-500.0,0.00022575,2]
[316030407,1709328674522,-647.62,0.00022575,2]
[316030408,1709328674530,-500.0,0.00022575,2]
[316030409,1709328674539,-500.0,0.00022575,2]
[316030410,1709328674551,-500.0,0.00022575,2]
[316030411,1709328674560,-678.21,0.00022575,2]
[316030412,1709328674568,-619.54602267,0.00022575,2]
[316030413,1709328674576,-500.0,0.00022575,2]
[316030414,1709328674584,-544.09,0.00022575,2]
[316030415,1709328674593,-508.46,0.00022575,2]
[316030416,1709328674600,-500.0,0.00022575,2]
[316030417,1709328674607,-500.0,0.00022575,2]
[316030418,1709328674615,-500.0,0.00022575,2]
[316030419,1709328674621,-500.0,0.00022575,2]
[316030420,1709328674629,-500.0,0.00022575,2]
[316030421,1709328674636,-500.0,0.00022575,2]
[316030422,1709328674646,-500.0,0.00022575,2]
[316030423,1709328674656,-500.0,0.00022575,2]
[316030424,1709328674666,-158.66129174,0.00022575,2]
[316030425,1709328674675,-500.0,0.00022575,2]
[316030426,1709328674686,-500.0,0.00022575,2]
[316030427,1709328674696,-546.96,0.00022575,2]
[316030428,1709328674705,-500.0,0.00022575,2]
[316030429,1709328674715,-555.83,0.00022575,2]
[316030430,1709328674726,-523.64,0.00022575,2]
[316030431,1709328674736,-631.39,0.00022575,2]
[316030432,1709328674746,-626.83463319,0.00022575,2]
[316030433,1709328674756,-500.0,0.00022575,2]
[316030434,1709328674767,-317.8,0.00022575,2]
[316030435,1709328674777,-500.0,0.00022575,2]
[316030436,1709328674787,-500.0,0.00022575,2]
[316030437,1709328674797,-500.0,0.00022575,2]
[316030438,1709328674807,-500.0,0.00022575,2]
[316030439,1709328674819,-500.0,0.00022575,2]
[316030440,1709328674828,-500.0,0.00022575,2]
[316030441,1709328674837,-500.0,0.00022575,2]
[316030442,1709328674847,-511.43,0.00022575,2]
[316030443,1709328674857,-232.31,0.00022575,2]
[316030444,1709328674868,-500.0,0.00022575,2]
[316030445,1709328674877,-500.0,0.00022575,2]
[316030446,1709328674887,-500.0,0.00022575,2]
[316030447,1709328674901,-500.0,0.00022575,2]
[316030448,1709328674912,-500.0,0.00022575,2]
[316030449,1709328674922,-500.0,0.00022575,2]
[316030450,1709328674932,-500.0,0.00022575,2]
[316030451,1709328674942,-500.0,0.00022575,2]
[316030452,1709328674952,-500.0,0.00022575,2]
[316030453,1709328674962,-1020.84,0.00022575,2]
[316030454,1709328674972,-786.29,0.00022575,2]
[316030455,1709328674982,-500.0,0.00022575,2]
[316030456,1709328674992,-500.0,0.00022575,2]
[316030457,1709328675002,-500.0,0.00022575,2]
[316030458,1709328675012,-719.0,0.00022575,2]
[316030459,1709328675022,-500.0,0.00022575,2]
[316030460,1709328675032,-649.43,0.00022575,2]
[316030461,1709328675042,-500.0,0.00022575,2]
[316030462,1709328675054,-790.2,0.00022575,2]
[316030463,1709328675064,-997.5,0.00022575,2]
[316030464,1709328675074,-1068.72,0.00022575,2]
[316030465,1709328675085,-1094.89,0.00022575,2]
[316030466,1709328675095,-500.0,0.00022575,2]
[316030467,1709328675105,-500.0,0.00022575,2]
[316030468,1709328675114,-500.0,0.00022575,2]
[316030469,1709328675126,-500.0,0.00022575,2]
[316030470,1709328675136,-1192.31,0.00022575,2]
[316030471,1709328675148,-506.99,0.00022575,2]
[316030472,1709328675157,-594.98,0.00022575,2]
[316030473,1709328675167,-500.0,0.00022575,2]
[316030474,1709328675178,-587.36,0.00022575,2]
[316030475,1709328675188,-1550.72,0.00022575,2]
[316030476,1709328675199,-500.0,0.00022575,2]
[316030477,1709328675210,-500.0,0.00022575,2]
[316030478,1709328675221,-500.0,0.00022575,2]
[316030479,1709328675231,-500.0,0.00022575,2]
[316030480,1709328675242,-500.0,0.00022575,2]
[316030481,1709328675253,-961.47,0.00022575,2]
[316030482,1709328675263,-500.0,0.00022575,2]
[316030483,1709328675273,-500.0,0.00022575,2]
[316030484,1709328675284,-500.0,0.00022575,2]
[316030485,1709328675295,-565.65,0.00022575,2]
[316030486,1709328675305,-840.17,0.00022575,2]
[316030487,1709328675316,-364.64,0.00022575,2]
[316030488,1709328675326,-711.45,0.00022575,2]
[316030489,1709328675337,-500.0,0.00022575,2]
[316030490,1709328675348,-500.0,0.00022575,2]
[316030491,1709328675359,-980.11,0.00022575,2]
[316030492,1709328675370,-280.73,0.00022575,2]
[316030493,1709328675380,-500.0,0.00022575,2]
[316030494,1709328675390,-879.26,0.00022575,2]
[316030495,1709328675406,-500.0,0.00022575,2]
[316030496,1709328675416,-797.44,0.00022575,2]
[316030497,1709328675426,-500.0,0.00022575,2]
[316030498,1709328675436,-500.0,0.00022575,2]
[316030499,1709328675446,-500.0,0.00022575,2]
[316030500,1709328675455,-598.47,0.00022575,2]
[316030501,1709328675465,-500.0,0.00022575,2]
[316030502,1709328675475,-500.0,0.00022575,2]
[316030503,1709328675485,-500.0,0.00022575,2]
[316030504,1709328675494,-500.0,0.00022575,2]
[316030505,1709328675503,-670.82,0.00022575,2]
[316030506,1709328675513,-500.0,0.00022575,2]
[316030507,1709328675523,-588.71,0.00022575,2]
[316030508,1709328675533,-500.0,0.00022575,2]
[316030509,1709328675543,-1272.27,0.00022575,2]
[316030510,1709328675553,-500.0,0.00022575,2]
[316030511,1709328675563,-500.0,0.00022575,2]
[316030512,1709328675572,-678.39,0.00022575,2]
[316030513,1709328675582,-500.0,0.00022575,2]
[316030514,1709328675592,-500.0,0.00022575,2]
[316030515,1709328675602,-849.53,0.00022575,2]
[316030516,1709328675611,-878.99,0.00022575,2]
[316030517,1709328675621,-2036.27,0.00022575,2]
[316030518,1709328675631,-500.0,0.00022575,2]
[316030519,1709328675641,-500.0,0.00022575,2]
[316030520,1709328675654,-500.0,0.00022575,2]
[316030521,1709328675665,-1094.91,0.00022575,2]
[316030522,1709328675675,-500.0,0.00022575,2]
[316030523,1709328675685,-500.0,0.00022575,2]
[316030524,1709328675695,-500.0,0.00022575,2]
[316030525,1709328675704,-500.0,0.00022575,2]
[316030526,1709328675715,-500.0,0.00022575,2]
[316030527,1709328675724,-533.71,0.00022575,2]
[316030528,1709328675734,-533.33,0.00022575,2]
[316030529,1709328675744,-1421.07,0.00022575,2]
[316030530,1709328675755,-912.34,0.00022575,2]
[316030531,1709328675766,-841.55,0.00022575,2]
[316030532,1709328675777,-500.0,0.00022575,2]
[316030533,1709328675788,-500.0,0.00022575,2]
[316030534,1709328675798,-500.0,0.00022575,2]
[316030535,1709328675809,-1139.29,0.00022575,2]
[316030536,1709328675820,-500.0,0.00022575,2]
[316030537,1709328675831,-1580.22,0.00022575,2]
[316030538,1709328675842,-500.0,0.00022575,2]
[316030539,1709328675852,-500.0,0.00022575,2]
[316030540,1709328675863,-500.0,0.00022575,2]
[316030541,1709328675874,-500.0,0.00022575,2]
[316030542,1709328675884,-500.0,0.00022575,2]
[316030543,1709328675896,-1262.24,0.00022575,2]
[316030544,1709328675906,-2674.55,0.00022575,2]
[316030545,1709328675917,-1341.14,0.00022575,2]
[316030546,1709328675927,-2092.42,0.00022575,2]
[316030547,1709328675937,-3554.37,0.00022575,2]
[316030548,1709328675948,-500.0,0.00022575,2]
[316030549,1709328675958,-22031.57,0.00022575,2]
[316030550,1709328675969,-701.99,0.00022575,2]
[316030551,1709328675979,-1064.52,0.00022575,2]
[316030552,1709328675989,-639.85,0.00022575,2]
[316030553,1709328675999,-5388.16,0.00022575,2]
[316030554,1709328676009,-627.03,0.00022575,2]
[316030555,1709328676020,-12964.37,0.00022575,2]
[316030556,1709328676030,-1232.9,0.00022575,2]
[316030557,1709328676040,-500.0,0.00022575,2]
[316030558,1709328676050,-19234.87,0.00022575,2]
[316030559,1709328676062,-500.0,0.00022575,2]
[316030560,1709328676072,-625.28,0.00022575,2]
[316030561,1709328676081,-879.42,0.00022575,2]
[316030562,1709328676091,-1030.09,0.00022575,2]
[316030563,1709328676102,-500.0,0.00022575,2]
[316030564,1709328676112,-500.0,0.00022575,2]
[316030565,1709328676122,-591.46,0.00022575,2]
[316030566,1709328676133,-590.32137876,0.00022575,2]
[316030567,1709328676144,-500.0,0.00022575,2]
[316030568,1709328676154,-525.33,0.00022575,2]
[316030569,1709328676164,-2623.39,0.00022575,2]
[316030570,1709328676173,-500.0,0.00022575,2]
[316030571,1709328676183,-718.91,0.00022575,2]
[316030572,1709328676193,-768.4,0.00022575,2]
[316030573,1709328676204,-500.0,0.00022575,2]
[316030574,1709328676214,-3801.92,0.00022575,2]
[316030575,1709328676224,-562.14,0.00022575,2]
[316030576,1709328676234,-500.0,0.00022575,2]
[316030577,1709328676244,-3047.53,0.00022575,2]
[316030578,1709328676254,-500.0,0.00022575,2]
[316030579,1709328676264,-1310.43,0.00022575,2]
[316030580,1709328676275,-500.0,0.00022575,2]
[316030581,1709328676286,-823.12,0.00022575,2]
[316030582,1709328676295,-500.0,0.00022575,2]
[316030583,1709328676306,-500.0,0.00022575,2]
[316030584,1709328676317,-716.56,0.00022575,2]
[316030585,1709328676326,-500.0,0.00022575,2]
[316030586,1709328676336,-500.0,0.00022575,2]
[316030587,1709328676346,-2376.01,0.00022575,2]
[316030588,1709328676356,-3381.92,0.00022575,2]
[316030589,1709328676365,-500.0,0.00022575,2]
[316030590,1709328676376,-866.15,0.00022575,2]
[316030591,1709328676387,-841.14,0.00022575,2]
[316030592,1709328676398,-500.0,0.00022575,2]
[316030593,1709328676407,-1258.66,0.00022575,2]
[316030594,1709328676416,-577.75,0.00022575,2]
[316030595,1709328676426,-500.0,0.00022575,2]
[316030596,1709328676436,-943.35,0.00022575,2]
[316030597,1709328676446,-652.2,0.00022575,2]
[316030598,1709328676456,-1224.0,0.00022575,2]
[316030599,1709328676466,-864.99,0.00022575,2]
[316030600,1709328676476,-820.32,0.00022575,2]
[316030601,1709328676486,-612.09,0.00022575,2]
[316030602,1709328676496,-500.0,0.00022575,2]
[316030603,1709328676506,-2359.92,0.00022575,2]
[316030604,1709328676517,-500.0,0.00022575,2]
[316030605,1709328676529,-500.0,0.00022575,2]
[316030606,1709328676539,-716.08,0.00022575,2]
[316030607,1709328676549,-1817.57,0.00022575,2]
[316030608,1709328676561,-1515.63,0.00022575,2]
[316030609,1709328676572,-819.32,0.00022575,2]
[316030610,1709328676582,-236.66694758,0.00022575,2]
[316030611,1709328676594,-777.15,0.00022575,2]
[316030612,1709328676604,-500.0,0.00022575,2]
[316030613,1709328676614,-591.97,0.00022575,2]
[316030614,1709328676625,-1444.25,0.00022575,2]
[316030615,1709328676636,-500.0,0.00022575,2]
[316030616,1709328676647,-890.54,0.00022575,2]
[316030617,1709328676657,-500.0,0.00022575,2]
[316030618,1709328676667,-500.0,0.00022575,2]
[316030619,1709328676679,-500.0,0.00022575,2]
[316030620,1709328676688,-653.12,0.00022575,2]
[316030621,1709328676699,-500.0,0.00022575,2]
[316030622,1709328676709,-544.86,0.00022575,2]
[316030623,1709328676720,-500.0,0.00022575,2]
[316030624,1709328676731,-668.01,0.00022575,2]
[316030625,1709328676742,-564.0,0.00022575,2]
[316030626,1709328676753,-11798.33,0.00022575,2]
[316030627,1709328676764,-517.53,0.00022575,2]
[316030628,1709328676775,-500.0,0.00022575,2]
[316030629,1709328676785,-500.0,0.00022575,2]
[316030630,1709328676797,-500.0,0.00022575,2]
[316030631,1709328676809,-174.89,0.00022575,2]
[316030632,1709328676819,-615.8,0.00022575,2]
[316030633,1709328676830,-1178.7,0.00022575,2]
[316030634,1709328676841,-500.0,0.00022575,2]
[316030635,1709328676855,-708.24,0.00022575,2]
[316030636,1709328676866,-500.0,0.00022575,2]
[316030637,1709328676876,-3036.11,0.00022575,2]
[316030638,1709328676886,-500.0,0.00022575,2]
[316030639,1709328676898,-819.23,0.00022575,2]
[316030640,1709328676907,-500.0,0.00022575,2]
[316030641,1709328676917,-568.79,0.00022575,2]
[316030642,1709328676928,-1291.29,0.00022575,2]
[316030643,1709328676938,-507.75,0.00022575,2]
[316030644,1709328676948,-661.02,0.00022575,2]
[316030645,1709328676958,-500.0,0.00022575,2]
[316030646,1709328676968,-592.43,0.00022575,2]
[316030647,1709328676979,-1204.1,0.00022575,2]
[316030648,1709328676989,-500.0,0.00022575,2]
[316030649,1709328677000,-500.0,0.00022575,2]
[316030650,1709328677010,-1481.86,0.00022575,2]
[316030651,1709328677020,-500.0,0.00022575,2]
[316030652,1709328677030,-500.0,0.00022575,2]
[316030653,1709328677041,-500.0,0.00022575,2]
[316030654,1709328677053,-783.92,0.00022575,2]
[316030655,1709328677062,-2213.26,0.00022575,2]
[316030656,1709328677073,-500.0,0.00022575,2]
[316030657,1709328677083,-782.94,0.00022575,2]
[316030658,1709328677093,-500.0,0.00022575,2]
[316030659,1709328677103,-1312.48,0.00022575,2]
[316030660,1709328677113,-500.0,0.00022575,2]
[316030661,1709328677124,-836.34,0.00022575,2]
[316030662,1709328677135,-1408.63,0.00022575,2]
[316030663,1709328677383,-552.95,0.00022575,2]
[316030664,1709328677403,-877.39,0.00022575,2]
[316030665,1709328677412,-726.46,0.00022575,2]
[316030666,1709328677422,-500.0,0.00022575,2]
[316030667,1709328677431,-1437.05,0.00022575,2]
[316030668,1709328677442,-500.0,0.00022575,2]
[316030669,1709328677452,-2294.72,0.00022575,2]
[316030670,1709328677462,-906.87,0.00022575,2]
[316030671,1709328677471,-685.72,0.00022575,2]
[316030672,1709328677481,-500.0,0.00022575,2]
[316030673,1709328677491,-786.95,0.00022575,2]
[316030674,1709328677501,-500.0,0.00022575,2]
[316030675,1709328677511,-500.0,0.00022575,2]
[316030676,1709328677521,-571.0,0.00022575,2]
[316030677,1709328677531,-212.79,0.00022575,2]
[316030678,1709328677541,-1703.63,0.00022575,2]
[316030679,1709328677551,-2645.44,0.00022575,2]
[316030680,1709328677562,-572.96,0.00022575,2]
[316030681,1709328677572,-923.63,0.00022575,2]
[316030682,1709328677581,-500.0,0.00022575,2]
[316030683,1709328677592,-874.1,0.00022575,2]
[316030684,1709328677602,-500.0,0.00022575,2]
[316030685,1709328677612,-2609.99,0.00022575,2]
[316030686,1709328677622,-500.0,0.00022575,2]
[316030687,1709328677633,-500.0,0.00022575,2]
[316030688,1709328677642,-4819.61,0.00022575,2]
[316030689,1709328677653,-1024.04,0.00022575,2]
[316030690,1709328677663,-500.0,0.00022575,2]
[316030691,1709328677673,-567.41,0.00022575,2]
[316030692,1709328677683,-1364.46,0.00022575,2]
[316030693,1709328677693,-500.0,0.00022575,2]
[316030694,1709328677704,-1947.64,0.00022575,2]
[316030695,1709328677714,-961.79,0.00022575,2]
[316030696,1709328677723,-1664.45,0.00022575,2]
[316030697,1709328677733,-500.0,0.00022575,2]
[316030698,1709328677744,-500.0,0.00022575,2]
[316030699,1709328677756,-2683.61,0.00022575,2]
[316030700,1709328677766,-591.44,0.00022575,2]
[316030701,1709328677777,-5623.01,0.00022575,2]